[Event "BPB Limburg Open 2019 Group A"]
[Site "Maastricht, Netherlands"]
[Date "2019.06.08"]
[Round "3.2"]
[White "Donchenko, Alexander"]
[Black "Van Foreest, Jorden"]
[Result "1/2-1/2"]
[TimeControl "2h + 15 sec/move"]
[WhiteFideId "24603295"]
[BlackFideId "1039784"]
[WhiteElo "2618"]
[BlackElo "2610"]

1. Nf3 {[%clk 02:00:27]} {[%emt 00:00:03]} c5 {[%clk 01:58:54]} {[%emt
00:01:34]} 2. c4 {[%clk 02:00:10]} {[%emt 00:00:32]} Nf6 {[%clk 01:58:54]}
{[%emt 00:00:16]} 3. Nc3 {[%clk 01:58:10]} {[%emt 00:02:16]} Nc6 {[%clk
01:57:59]} {[%emt 00:01:09]} 4. e3 {[%clk 01:55:00]} {[%emt 00:03:25]} g6
{[%clk 01:58:00]} {[%emt 00:00:14]} 5. d4 {[%clk 01:54:44]} {[%emt 00:00:31]}
cxd4 {[%clk 01:57:53]} {[%emt 00:00:21]} 6. exd4 {[%clk 01:54:54]} {[%emt
00:00:06]} d5 {[%clk 01:57:59]} {[%emt 00:00:09]} 7. cxd5 {[%clk 01:54:44]}
{[%emt 00:00:25]} Nxd5 {[%clk 01:58:00]} {[%emt 00:00:13]} 8. Qb3 {[%clk
01:54:42]} {[%emt 00:00:18]} e6 {[%clk 01:57:52]} {[%emt 00:00:23]} 9. Bb5
{[%clk 01:51:37]} {[%emt 00:03:20]} Bg7 {[%clk 01:57:52]} {[%emt 00:00:15]} 10.
O-O {[%clk 01:51:43]} {[%emt 00:00:09]} O-O {[%clk 01:57:55]} {[%emt 00:00:11]}
11. Bxc6 {[%clk 01:51:49]} {[%emt 00:00:10]} bxc6 {[%clk 01:58:03]} {[%emt
00:00:07]} 12. Re1 {[%clk 01:51:58]} {[%emt 00:00:06]} Qb6 {[%clk 01:57:03]}
{[%emt 00:01:15]} 13. Qc2 {[%clk 01:49:57]} {[%emt 00:02:16]} Nb4 {[%clk
01:54:04]} {[%emt 00:03:15]} 14. Qe4 {[%clk 01:45:18]} {[%emt 00:04:54]} e5
{[%clk 01:51:00]} {[%emt 00:03:19]} 15. dxe5 {[%clk 01:18:37]} {[%emt
00:26:56]} Bf5 {[%clk 01:50:17]} {[%emt 00:00:59]} 16. Qh4 {[%clk 01:16:36]}
{[%emt 00:02:15]} Nc2 {[%clk 01:48:12]} {[%emt 00:02:20]} 17. Na4 {[%clk
01:14:43]} {[%emt 00:02:08]} Qc7 {[%clk 01:42:10]} {[%emt 00:06:17]} 18. Bf4
{[%clk 01:08:53]} {[%emt 00:06:05]} Nxa1 {[%clk 01:25:24]} {[%emt 00:17:02]} 19.
Rxa1 {[%clk 01:07:20]} {[%emt 00:01:49]} Qd8 {[%clk 01:23:18]} {[%emt
00:02:20]} 20. Bg5 {[%clk 01:04:41]} {[%emt 00:02:54]} Qd3 {[%clk 01:16:21]}
{[%emt 00:07:12]} 21. Re1 {[%clk 00:58:46]} {[%emt 00:06:10]} Rfe8 {[%clk
01:14:56]} {[%emt 00:01:40]} 22. h3 {[%clk 00:55:13]} {[%emt 00:03:48]} Qc2
{[%clk 01:11:59]} {[%emt 00:03:12]} 23. Bh6 {[%clk 00:45:16]} {[%emt 00:10:12]}
Rad8 {[%clk 01:09:09]} {[%emt 00:03:05]} 24. Bxg7 {[%clk 00:43:47]} {[%emt
00:01:43]} Kxg7 {[%clk 01:09:13]} {[%emt 00:00:11]} 25. Nd4 {[%clk 00:43:54]}
{[%emt 00:00:08]} Qd2 {[%clk 01:05:36]} {[%emt 00:03:52]} 26. Nxf5+ {[%clk
00:42:27]} {[%emt 00:01:42]} gxf5 {[%clk 01:05:44]} {[%emt 00:00:07]} 27. Qf6+
{[%clk 00:26:44]} {[%emt 00:15:59]} Kg8 {[%clk 01:04:35]} {[%emt 00:01:24]} 28.
Re3 {[%clk 00:26:02]} {[%emt 00:00:58]} Rd3 {[%clk 01:01:20]} {[%emt 00:03:29]}
29. Qg5+ {[%clk 00:25:29]} {[%emt 00:00:48]} Kh8 {[%clk 01:00:32]} {[%emt
00:01:03]} 30. Qf6+ {[%clk 00:25:38]} {[%emt 00:00:07]} Kg8 {[%clk 01:00:42]}
{[%emt 00:00:05]} 31. Qg5+ {[%clk 00:22:17]} {[%emt 00:03:36]} Kh8 {[%clk
01:00:47]} {[%emt 00:00:10]} 1/2-1/2

[Event "BPB Limburg Open 2019 Group A"]
[Site "Maastricht, Netherlands"]
[Date "2019.06.08"]
[Round "3.3"]
[White "Beerdsen, Thomas"]
[Black "Van Wely, Loek"]
[Result "1/2-1/2"]
[TimeControl "2h + 15 sec/move"]
[WhiteFideId "1030108"]
[BlackFideId "1000268"]
[WhiteElo "2488"]
[BlackElo "2604"]

1. e4 {[%clk 01:59:41]} {[%emt 00:00:48]} c5 {[%clk 01:54:34]} {[%emt
00:05:57]} 2. Nf3 {[%clk 01:59:50]} {[%emt 00:00:06]} e6 {[%clk 01:54:44]}
{[%emt 00:00:04]} 3. d4 {[%clk 01:59:07]} {[%emt 00:00:57]} cxd4 {[%clk
01:54:52]} {[%emt 00:00:07]} 4. Nxd4 {[%clk 01:59:18]} {[%emt 00:00:04]} a6
{[%clk 01:52:29]} {[%emt 00:02:38]} 5. Nc3 {[%clk 01:57:19]} {[%emt 00:02:13]}
Qc7 {[%clk 01:51:14]} {[%emt 00:01:30]} 6. Bd3 {[%clk 01:53:47]} {[%emt
00:03:48]} Nf6 {[%clk 01:51:19]} {[%emt 00:00:10]} 7. Qe2 {[%clk 01:51:26]}
{[%emt 00:02:36]} d6 {[%clk 01:50:34]} {[%emt 00:01:01]} 8. O-O {[%clk
01:47:36]} {[%emt 00:04:04]} Nbd7 {[%clk 01:50:12]} {[%emt 00:00:37]} 9. Kh1
{[%clk 01:43:06]} {[%emt 00:04:46]} b6 {[%clk 01:47:08]} {[%emt 00:03:19]} 10.
Bg5 {[%clk 01:38:28]} {[%emt 00:04:52]} Be7 {[%clk 01:36:56]} {[%emt 00:10:27]}
11. f4 {[%clk 01:31:52]} {[%emt 00:06:51]} Bb7 {[%clk 01:23:09]} {[%emt
00:14:02]} 12. Rae1 {[%clk 01:27:06]} {[%emt 00:05:00]} h6 {[%clk 01:21:22]}
{[%emt 00:02:03]} 13. Bh4 {[%clk 01:17:03]} {[%emt 00:10:18]} Nc5 {[%clk
01:12:10]} {[%emt 00:09:27]} 14. Bg3 {[%clk 00:58:15]} {[%emt 00:19:03]} h5
{[%clk 01:03:20]} {[%emt 00:09:05]} 15. Nf3 {[%clk 00:48:30]} {[%emt 00:10:00]}
b5 {[%clk 00:49:33]} {[%emt 00:14:01]} 16. a3 {[%clk 00:45:14]} {[%emt
00:03:31]} Rc8 {[%clk 00:46:02]} {[%emt 00:03:46]} 17. Bh4 {[%clk 00:34:26]}
{[%emt 00:11:02]} Ng4 {[%clk 00:42:20]} {[%emt 00:03:57]} 18. Bxe7 {[%clk
00:30:57]} {[%emt 00:03:45]} Qxe7 {[%clk 00:42:25]} {[%emt 00:00:10]} 19. h3
{[%clk 00:27:52]} {[%emt 00:03:20]} Nf6 {[%clk 00:42:19]} {[%emt 00:00:22]} 20.
Ng5 {[%clk 00:27:06]} {[%emt 00:01:01]} h4 {[%clk 00:33:19]} {[%emt 00:09:15]}
21. Qf2 {[%clk 00:26:05]} {[%emt 00:01:15]} Nfd7 {[%clk 00:28:22]} {[%emt
00:05:13]} 22. Qd4 {[%clk 00:19:57]} {[%emt 00:06:23]} Kf8 {[%clk 00:23:43]}
{[%emt 00:04:54]} 23. Be2 {[%clk 00:17:03]} {[%emt 00:03:09]} Nb6 {[%clk
00:17:44]} {[%emt 00:06:14]} 24. Rd1 {[%clk 00:14:53]} {[%emt 00:02:24]} Nba4
{[%clk 00:17:19]} {[%emt 00:00:40]} 25. Nxa4 {[%clk 00:13:07]} {[%emt
00:02:01]} Nxa4 {[%clk 00:16:45]} {[%emt 00:00:49]} 26. Bg4 {[%clk 00:10:12]}
{[%emt 00:03:10]} Rh6 {[%clk 00:13:29]} {[%emt 00:03:32]} 27. b3 {[%clk
00:08:45]} {[%emt 00:01:42]} Nc5 {[%clk 00:13:22]} {[%emt 00:00:21]} 28. b4
{[%clk 00:06:59]} {[%emt 00:02:01]} Na4 {[%clk 00:13:32]} {[%emt 00:00:05]} 29.
Rf2 {[%clk 00:05:31]} {[%emt 00:01:43]} d5 {[%clk 00:10:34]} {[%emt 00:03:13]}
30. exd5 {[%clk 00:04:31]} {[%emt 00:01:15]} Bxd5 {[%clk 00:10:39]} {[%emt
00:00:09]} 31. f5 {[%clk 00:03:19]} {[%emt 00:01:28]} Rc4 {[%clk 00:03:13]}
{[%emt 00:07:41]} 32. Nxe6+ {[%clk 00:00:57]} {[%emt 00:02:36]} Bxe6 {[%clk
00:01:17]} {[%emt 00:02:11]} 33. Qd8+ {[%clk 00:01:11]} {[%emt 00:00:01]} Qxd8
{[%clk 00:01:30]} {[%emt 00:00:02]} 34. Rxd8+ {[%clk 00:01:25]} Ke7 {[%clk
00:01:44]} {[%emt 00:00:01]} 35. fxe6 {[%clk 00:01:39]} {[%emt 00:00:01]} fxe6
{[%clk 00:01:28]} {[%emt 00:00:31]} 36. Ra8 {[%clk 00:01:28]} {[%emt 00:00:25]}
Rc6 {[%clk 00:01:13]} {[%emt 00:00:30]} 37. Ra7+ {[%clk 00:01:31]} {[%emt
00:00:12]} Kd6 {[%clk 00:01:27]} {[%emt 00:00:01]} 38. Bf3 {[%clk 00:01:23]}
{[%emt 00:00:23]} Rb6 {[%clk 00:01:40]} {[%emt 00:00:02]} 39. Rd2+ {[%clk
00:01:06]} {[%emt 00:00:32]} Ke5 {[%clk 00:01:49]} {[%emt 00:00:06]} 40. Rxg7
{[%clk 00:01:18]} {[%emt 00:00:03]} Nb2 {[%clk 00:01:18]} {[%emt 00:00:45]} 41.
Rg4 {[%clk 00:01:01]} {[%emt 00:00:32]} Nc4 {[%clk 00:00:58]} {[%emt 00:00:36]}
42. Rd3 {[%clk 00:00:44]} {[%emt 00:00:32]} Nd6 {[%clk 00:00:35]} {[%emt
00:00:38]} 43. a4 {[%clk 00:00:32]} {[%emt 00:00:27]} bxa4 {[%clk 00:00:19]}
{[%emt 00:00:31]} 44. Ra3 {[%clk 00:00:45]} {[%emt 00:00:02]} Nf5 {[%clk
00:00:30]} {[%emt 00:00:04]} 45. Rxa4 {[%clk 00:00:50]} {[%emt 00:00:11]} Rd6
{[%clk 00:00:40]} {[%emt 00:00:05]} 46. c4 {[%clk 00:00:37]} {[%emt 00:00:28]}
Rd2 {[%clk 00:00:33]} {[%emt 00:00:22]} 47. Rxa6 {[%clk 00:00:40]} {[%emt
00:00:13]} Ng3+ {[%clk 00:00:36]} {[%emt 00:00:12]} 48. Kh2 {[%clk 00:00:46]}
{[%emt 00:00:08]} Rb2 {[%clk 00:00:46]} {[%emt 00:00:05]} 49. Ra5+ {[%clk
00:00:43]} {[%emt 00:00:19]} Kf6 {[%clk 00:00:42]} {[%emt 00:00:18]} 50. b5
{[%clk 00:00:36]} {[%emt 00:00:21]} Rb1 {[%clk 00:00:38]} {[%emt 00:00:19]} 51.
Rxg3 {[%clk 00:00:50]} {[%emt 00:00:02]} hxg3+ {[%clk 00:00:51]} {[%emt
00:00:02]} 52. Kxg3 {[%clk 00:01:04]} {[%emt 00:00:01]} Rg6+ {[%clk 00:00:52]}
{[%emt 00:00:13]} 53. Bg4 {[%clk 00:00:47]} {[%emt 00:00:31]} Rg5 {[%clk
00:00:54]} {[%emt 00:00:13]} 54. Ra6 {[%clk 00:00:46]} {[%emt 00:00:16]} Re5
{[%clk 00:01:00]} {[%emt 00:00:09]} 55. Rc6 {[%clk 00:00:56]} {[%emt 00:00:05]}
Re4 {[%clk 00:00:47]} {[%emt 00:00:28]} 56. b6 {[%clk 00:00:48]} {[%emt
00:00:23]} Rb3+ {[%clk 00:00:56]} {[%emt 00:00:05]} 57. Kh2 {[%clk 00:00:50]}
{[%emt 00:00:14]} Rb2 {[%clk 00:00:16]} {[%emt 00:00:55]} 58. c5 {[%clk
00:00:50]} {[%emt 00:00:15]} Re3 {[%clk 00:00:29]} {[%emt 00:00:02]} 59. Rc7
{[%clk 00:00:38]} {[%emt 00:00:27]} Reb3 {[%clk 00:00:43]} {[%emt 00:00:01]} 60.
Rc6 {[%clk 00:00:44]} {[%emt 00:00:10]} Re3 {[%clk 00:00:50]} {[%emt 00:00:08]}
61. Rd6 {[%clk 00:00:39]} {[%emt 00:00:19]} Ke7 {[%clk 00:00:55]} {[%emt
00:00:10]} 62. Rc6 {[%clk 00:00:29]} {[%emt 00:00:25]} Kf6 {[%clk 00:00:50]}
{[%emt 00:04:01]} 1/2-1/2

[Event "BPB Limburg Open 2019 Group A"]
[Site "Maastricht, Netherlands"]
[Date "2019.06.08"]
[Round "3.5"]
[White "Huesmann, Thomas"]
[Black "Ernst, Sipke"]
[Result "0-1"]
[TimeControl "2h + 15 sec/move"]
[WhiteFideId "200441"]
[BlackFideId "1004689"]
[WhiteElo "2136"]
[BlackElo "2541"]

1. e4 {[%clk 02:00:26]} {[%emt 00:00:03]} e5 {[%clk 01:58:33]} {[%emt
00:01:58]} 2. Nf3 {[%clk 02:00:31]} {[%emt 00:00:10]} Nc6 {[%clk 01:58:45]}
{[%emt 00:00:04]} 3. Bc4 {[%clk 02:00:33]} {[%emt 00:00:13]} Bc5 {[%clk
01:58:43]} {[%emt 00:00:15]} 4. O-O {[%clk 01:59:59]} {[%emt 00:00:50]} Nf6
{[%clk 01:58:41]} {[%emt 00:00:17]} 5. d4 {[%clk 01:59:28]} {[%emt 00:00:46]}
Bxd4 {[%clk 01:58:49]} {[%emt 00:00:08]} 6. Nxd4 {[%clk 01:59:34]} {[%emt
00:00:09]} Nxd4 {[%clk 01:59:02]} {[%emt 00:00:02]} 7. f4 {[%clk 01:59:31]}
{[%emt 00:00:17]} d6 {[%clk 01:59:16]} {[%emt 00:00:02]} 8. fxe5 {[%clk
01:59:33]} {[%emt 00:00:12]} dxe5 {[%clk 01:59:29]} {[%emt 00:00:02]} 9. Bg5
{[%clk 01:59:24]} {[%emt 00:00:24]} Qe7 {[%clk 01:59:39]} {[%emt 00:00:05]} 10.
Bxf6 {[%clk 01:54:49]} {[%emt 00:04:50]} gxf6 {[%clk 01:58:43]} {[%emt
00:01:12]} 11. c3 {[%clk 01:54:57]} {[%emt 00:00:07]} Ne6 {[%clk 01:53:42]}
{[%emt 00:05:16]} 12. Bxe6 {[%clk 01:50:37]} {[%emt 00:04:35]} Bxe6 {[%clk
01:48:57]} {[%emt 00:05:01]} 13. Na3 {[%clk 01:49:44]} {[%emt 00:01:08]} Rg8
{[%clk 01:47:02]} {[%emt 00:02:10]} 14. Kh1 {[%clk 01:42:47]} {[%emt 00:07:12]}
Rg4 {[%clk 01:43:27]} {[%emt 00:03:49]} 15. Qd3 {[%clk 01:40:46]} {[%emt
00:02:16]} Qd7 {[%clk 01:43:23]} {[%emt 00:00:19]} 16. Qe3 {[%clk 01:36:49]}
{[%emt 00:04:12]} Qc6 {[%clk 01:43:18]} {[%emt 00:00:21]} 17. Rae1 {[%clk
01:36:46]} {[%emt 00:00:18]} f5 {[%clk 01:41:45]} {[%emt 00:01:48]} 18. h3
{[%clk 01:32:50]} {[%emt 00:04:11]} f4 {[%clk 01:39:39]} {[%emt 00:02:22]} 19.
Qe2 {[%clk 01:26:57]} {[%emt 00:06:07]} Rg3 {[%clk 01:36:46]} {[%emt 00:03:08]}
20. Rf3 {[%clk 01:25:36]} {[%emt 00:01:36]} Rxf3 {[%clk 01:36:37]} {[%emt
00:00:24]} 21. Qxf3 {[%clk 01:25:39]} {[%emt 00:00:12]} O-O-O {[%clk 01:36:45]}
{[%emt 00:00:07]} 22. Qh5 {[%clk 01:24:10]} {[%emt 00:01:43]} Qc5 {[%clk
01:31:54]} {[%emt 00:05:07]} 23. Qe2 {[%clk 01:14:54]} {[%emt 00:09:32]} a6
{[%clk 01:31:09]} {[%emt 00:01:01]} 24. Nb1 {[%clk 01:07:51]} {[%emt 00:07:17]}
Qb5 {[%clk 01:25:47]} {[%emt 00:05:37]} 25. Qxb5 {[%clk 01:06:45]} {[%emt
00:01:22]} axb5 {[%clk 01:25:57]} {[%emt 00:00:04]} 26. a3 {[%clk 01:04:10]}
{[%emt 00:02:50]} Ba2 {[%clk 01:19:26]} {[%emt 00:06:45]} 27. Kg1 {[%clk
01:01:54]} {[%emt 00:02:31]} Rd3 {[%clk 01:18:55]} {[%emt 00:00:45]} 28. Kf2
{[%clk 01:00:29]} {[%emt 00:01:40]} c6 {[%clk 01:18:57]} {[%emt 00:00:15]} 29.
Rc1 {[%clk 00:56:38]} {[%emt 00:04:05]} Kd7 {[%clk 01:17:30]} {[%emt 00:01:42]}
30. Ke2 {[%clk 00:56:07]} {[%emt 00:00:47]} Re3+ {[%clk 01:17:39]} {[%emt
00:00:05]} 31. Kf2 {[%clk 00:56:08]} {[%emt 00:00:14]} Bxb1 {[%clk 01:17:48]}
{[%emt 00:00:07]} 32. Rxb1 {[%clk 00:56:13]} {[%emt 00:00:09]} Rxe4 {[%clk
01:18:00]} {[%emt 00:00:04]} 33. Rd1+ {[%clk 00:55:54]} {[%emt 00:00:35]} Ke7
{[%clk 01:18:11]} {[%emt 00:00:04]} 34. Rd2 {[%clk 00:54:38]} {[%emt 00:01:31]}
Re3 {[%clk 01:17:44]} {[%emt 00:00:41]} 35. Rd1 {[%clk 00:54:33]} {[%emt
00:00:21]} h5 {[%clk 01:17:51]} {[%emt 00:00:08]} 36. Rd2 {[%clk 00:54:34]}
{[%emt 00:00:14]} h4 {[%clk 01:17:52]} {[%emt 00:00:15]} 37. Rd1 {[%clk
00:54:37]} {[%emt 00:00:12]} f5 {[%clk 01:18:01]} {[%emt 00:00:06]} 38. Rd2
{[%clk 00:54:26]} {[%emt 00:00:26]} Rg3 {[%clk 01:17:30]} {[%emt 00:00:46]} 0-1

[Event "BPB Limburg Open 2019 Group A"]
[Site "Maastricht, Netherlands"]
[Date "2019.06.08"]
[Round "3.6"]
[White "Van Foreest, Lucas"]
[Black "Kett, Tim"]
[Result "1-0"]
[TimeControl "2h + 15 sec/move"]
[WhiteFideId "1039792"]
[BlackFideId "1801210"]
[WhiteElo "2522"]
[BlackElo "2197"]

1. e4 {[%clk 01:56:06]} {[%emt 00:04:23]} e5 {[%clk 02:00:16]} {[%emt
00:00:13]} 2. Nf3 {[%clk 01:56:06]} {[%emt 00:00:15]} Nc6 {[%clk 02:00:17]}
{[%emt 00:00:13]} 3. Bc4 {[%clk 01:56:10]} {[%emt 00:00:11]} Be7 {[%clk
01:52:39]} {[%emt 00:07:54]} 4. d4 {[%clk 01:54:08]} {[%emt 00:02:17]} d6
{[%clk 01:52:45]} {[%emt 00:00:08]} 5. dxe5 {[%clk 01:52:55]} {[%emt 00:01:29]}
dxe5 {[%clk 01:48:19]} {[%emt 00:04:40]} 6. Qxd8+ {[%clk 01:52:58]} {[%emt
00:00:12]} Bxd8 {[%clk 01:48:26]} {[%emt 00:00:09]} 7. Ng5 {[%clk 01:30:41]}
{[%emt 00:22:32]} Bxg5 {[%clk 01:43:55]} {[%emt 00:04:46]} 8. Bxg5 {[%clk
01:30:49]} {[%emt 00:00:06]} Be6 {[%clk 01:39:35]} {[%emt 00:04:35]} 9. Bb5
{[%clk 01:29:30]} {[%emt 00:01:35]} Nge7 {[%clk 01:23:56]} {[%emt 00:15:54]} 10.
c3 {[%clk 01:27:59]} {[%emt 00:01:46]} a6 {[%clk 01:16:54]} {[%emt 00:07:17]}
11. Be2 {[%clk 01:27:31]} {[%emt 00:00:39]} Nc8 {[%clk 01:13:37]} {[%emt
00:03:36]} 12. Nd2 {[%clk 01:26:33]} {[%emt 00:01:14]} Nd6 {[%clk 01:10:54]}
{[%emt 00:02:58]} 13. O-O-O {[%clk 01:25:50]} {[%emt 00:00:58]} O-O {[%clk
01:10:23]} {[%emt 00:00:46]} 14. f3 {[%clk 01:25:41]} {[%emt 00:00:24]} Na5
{[%clk 01:04:49]} {[%emt 00:05:48]} 15. b3 {[%clk 01:25:45]} {[%emt 00:00:13]}
Nc6 {[%clk 01:04:12]} {[%emt 00:00:51]} 16. Be3 {[%clk 01:25:34]} {[%emt
00:00:27]} b5 {[%clk 01:03:26]} {[%emt 00:01:01]} 17. Kb2 {[%clk 01:20:44]}
{[%emt 00:05:06]} Rfd8 {[%clk 00:57:48]} {[%emt 00:05:51]} 18. Ra1 {[%clk
01:19:41]} {[%emt 00:01:19]} Rd7 {[%clk 00:51:14]} {[%emt 00:06:48]} 19. Rhd1
{[%clk 01:14:19]} {[%emt 00:05:36]} b4 {[%clk 00:45:12]} {[%emt 00:06:17]} 20.
cxb4 {[%clk 01:13:32]} {[%emt 00:01:02]} Nxb4 {[%clk 00:45:05]} {[%emt
00:00:23]} 21. Rac1 {[%clk 01:03:50]} {[%emt 00:09:58]} Nb5 {[%clk 00:41:24]}
{[%emt 00:03:55]} 22. Nc4 {[%clk 01:03:32]} {[%emt 00:00:34]} Rxd1 {[%clk
00:38:38]} {[%emt 00:03:01]} 23. Rxd1 {[%clk 01:02:01]} {[%emt 00:01:45]} Nc6
{[%clk 00:27:16]} {[%emt 00:11:37]} 24. a4 {[%clk 00:52:53]} {[%emt 00:09:24]}
Nbd4 {[%clk 00:11:48]} {[%emt 00:15:42]} 25. Nxe5 {[%clk 00:51:49]} {[%emt
00:01:20]} Bxb3 {[%clk 00:11:09]} {[%emt 00:00:54]} 26. Rxd4 {[%clk 00:50:10]}
{[%emt 00:01:54]} Nxd4 {[%clk 00:11:12]} {[%emt 00:00:12]} 27. Bxd4 {[%clk
00:50:21]} {[%emt 00:00:04]} Bxa4 {[%clk 00:11:04]} {[%emt 00:00:23]} 28. Bc4
{[%clk 00:50:03]} {[%emt 00:00:33]} Be8 {[%clk 00:10:47]} {[%emt 00:00:32]} 29.
Bc3 {[%clk 00:46:49]} {[%emt 00:03:29]} a5 {[%clk 00:10:28]} {[%emt 00:00:32]}
30. Kc1 {[%clk 00:45:52]} {[%emt 00:01:13]} Kf8 {[%clk 00:09:34]} {[%emt
00:01:09]} 31. Bd5 {[%clk 00:45:23]} {[%emt 00:00:45]} c6 {[%clk 00:07:55]}
{[%emt 00:01:54]} 32. Bb3 {[%clk 00:45:34]} {[%emt 00:00:05]} a4 {[%clk
00:07:33]} {[%emt 00:00:36]} 33. Bb4+ {[%clk 00:45:05]} {[%emt 00:00:44]} Kg8
{[%clk 00:07:37]} {[%emt 00:00:10]} 34. Bc4 {[%clk 00:43:24]} {[%emt 00:01:57]}
g5 {[%clk 00:06:12]} {[%emt 00:01:37]} 35. Ng4 {[%clk 00:39:56]} {[%emt
00:03:44]} Kg7 {[%clk 00:04:57]} {[%emt 00:01:30]} 36. Bc3+ {[%clk 00:38:42]}
{[%emt 00:01:30]} Kf8 {[%clk 00:04:57]} {[%emt 00:00:15]} 37. Nf6 {[%clk
00:37:29]} {[%emt 00:01:28]} h6 {[%clk 00:05:04]} {[%emt 00:00:08]} 38. Bd4
{[%clk 00:36:06]} {[%emt 00:01:38]} a3 {[%clk 00:03:42]} {[%emt 00:01:37]} 39.
Bc5+ {[%clk 00:33:42]} {[%emt 00:02:39]} Kg7 {[%clk 00:03:56]} {[%emt
00:00:02]} 40. Nxe8+ {[%clk 00:33:38]} {[%emt 00:00:20]} Rxe8 {[%clk 00:04:09]}
{[%emt 00:00:02]} 41. Bxa3 {[%clk 00:33:47]} {[%emt 00:00:06]} g4 {[%clk
00:03:52]} {[%emt 00:00:31]} 42. Bb2+ {[%clk 00:33:58]} {[%emt 00:00:04]} f6
{[%clk 00:03:53]} {[%emt 00:00:14]} 43. e5 {[%clk 00:34:04]} {[%emt 00:00:10]}
fxe5 {[%clk 00:03:34]} {[%emt 00:00:33]} 44. f4 {[%clk 00:34:16]} {[%emt
00:00:03]} Kg6 {[%clk 00:03:25]} {[%emt 00:00:25]} 45. fxe5 {[%clk 00:32:21]}
{[%emt 00:02:10]} Kf5 {[%clk 00:03:27]} {[%emt 00:00:12]} 46. e6 {[%clk
00:32:19]} {[%emt 00:00:16]} Ke4 {[%clk 00:02:20]} {[%emt 00:01:22]} 47. Bf6
{[%clk 00:32:00]} {[%emt 00:00:34]} Ke3 {[%clk 00:02:21]} {[%emt 00:00:14]} 48.
e7 {[%clk 00:31:27]} {[%emt 00:00:48]} Kf2 {[%clk 00:02:30]} {[%emt 00:00:05]}
49. Bf7 {[%clk 00:31:18]} {[%emt 00:00:24]} Rxe7 {[%clk 00:02:28]} {[%emt
00:00:18]} 50. Bxe7 {[%clk 00:31:26]} {[%emt 00:00:06]} g3 {[%clk 00:02:00]}
{[%emt 00:00:42]} 51. hxg3 {[%clk 00:31:36]} {[%emt 00:00:07]} Kxg3 {[%clk
00:02:07]} {[%emt 00:00:08]} 52. Bf8 {[%clk 00:31:40]} {[%emt 00:00:10]} Kxg2
{[%clk 00:02:17]} {[%emt 00:00:05]} 53. Bg7 {[%clk 00:31:52]} {[%emt 00:00:03]}
1-0

[Event "BPB Limburg Open 2019 Group A"]
[Site "Maastricht, Netherlands"]
[Date "2019.06.08"]
[Round "3.7"]
[White "Admiraal, Miguoel"]
[Black "Harff, Marcel"]
[Result "1/2-1/2"]
[TimeControl "2h + 15 sec/move"]
[WhiteFideId "1019716"]
[BlackFideId "24621382"]
[WhiteElo "2507"]
[BlackElo "2372"]

1. d4 {[%clk 01:55:31]} {[%emt 00:04:58]} Nf6 {[%clk 02:00:16]} {[%emt
00:00:15]} 2. Bg5 {[%clk 01:55:00]} {[%emt 00:00:46]} Ne4 {[%clk 02:00:08]}
{[%emt 00:00:23]} 3. Bf4 {[%clk 01:55:02]} {[%emt 00:00:13]} d5 {[%clk
02:00:00]} {[%emt 00:00:23]} 4. e3 {[%clk 01:55:02]} {[%emt 00:00:15]} e6
{[%clk 01:56:41]} {[%emt 00:03:34]} 5. Bd3 {[%clk 01:47:15]} {[%emt 00:08:03]}
b6 {[%clk 01:55:53]} {[%emt 00:01:04]} 6. Ne2 {[%clk 01:42:31]} {[%emt
00:04:58]} Bb7 {[%clk 01:54:57]} {[%emt 00:01:10]} 7. O-O {[%clk 01:41:18]}
{[%emt 00:01:28]} Bd6 {[%clk 01:54:59]} {[%emt 00:00:13]} 8. c4 {[%clk
01:33:34]} {[%emt 00:08:00]} dxc4 {[%clk 01:51:40]} {[%emt 00:03:35]} 9. Bxc4
{[%clk 01:31:50]} {[%emt 00:01:58]} Nd7 {[%clk 01:51:11]} {[%emt 00:00:44]} 10.
Nbc3 {[%clk 01:30:23]} {[%emt 00:01:42]} O-O {[%clk 01:50:15]} {[%emt
00:01:10]} 11. Nxe4 {[%clk 01:28:06]} {[%emt 00:02:33]} Bxe4 {[%clk 01:50:22]}
{[%emt 00:00:08]} 12. Bxd6 {[%clk 01:20:40]} {[%emt 00:07:42]} cxd6 {[%clk
01:50:27]} {[%emt 00:00:10]} 13. Nc3 {[%clk 01:20:04]} {[%emt 00:00:51]} Bb7
{[%clk 01:46:44]} {[%emt 00:03:55]} 14. Rc1 {[%clk 01:00:49]} {[%emt 00:19:32]}
Qe7 {[%clk 01:41:07]} {[%emt 00:05:51]} 15. Bd3 {[%clk 00:50:22]} {[%emt
00:10:43]} Rfc8 {[%clk 01:40:38]} {[%emt 00:00:43]} 16. Qe2 {[%clk 00:49:53]}
{[%emt 00:00:44]} Nf6 {[%clk 01:37:57]} {[%emt 00:02:56]} 17. Rc2 {[%clk
00:49:12]} {[%emt 00:00:57]} a6 {[%clk 01:33:24]} {[%emt 00:04:48]} 18. Rfc1
{[%clk 00:49:05]} {[%emt 00:00:22]} b5 {[%clk 01:32:45]} {[%emt 00:00:54]} 19.
a3 {[%clk 00:36:42]} {[%emt 00:12:40]} g6 {[%clk 01:29:24]} {[%emt 00:03:35]}
20. Nb1 {[%clk 00:26:01]} {[%emt 00:10:56]} Qd7 {[%clk 01:25:31]} {[%emt
00:04:07]} 21. Rxc8+ {[%clk 00:22:55]} {[%emt 00:03:22]} Rxc8 {[%clk 01:23:08]}
{[%emt 00:02:38]} 22. Rxc8+ {[%clk 00:22:47]} {[%emt 00:00:23]} Qxc8 {[%clk
01:23:00]} {[%emt 00:00:24]} 1/2-1/2